bitfinex/quotes_ETHUSD_20220310
["timestamp","ask_amount","ask_price","bid_price","bid_amount"]
[1646887389423,0.00286035,2610.8,2610.7,3.5]
[1646887389824,0.00286035,2610.8,2610.6,4.48649068]
[1646887390027,0.00286035,2610.8,2610.7,0.07248198]
[1646887390226,0.00286035,2610.8,2610.7,3.57248198]
[1646887393180,0.00286035,2610.8,2610.7,0.07248198]
[1646887393573,0.00286035,2610.8,2610.7,1.66203946]
[1646887395623,6.035e-05,2610.8,2610.7,1.66203946]
[1646887395822,6.035e-05,2610.8,2610.7,2.03793946]
[1646887396030,7.592e-05,2610.9,2610.8,4.27663965]
[1646887396226,0.011667,2611.3,2610.8,8.86619713]
[1646887396426,0.56981442,2611.4,2611.0,0.3759]
[1646887396729,0.56981442,2611.4,2611.2,0.3759]
[1646887396926,0.011667,2611.9,2611.3,1.58955748]
[1646887397125,0.99481618,2612.2,2611.4,0.0716453]
[1646887397325,1.95277618,2612.2,2611.4,0.0716453]
[1646887397526,1.95277618,2612.2,2611.2,0.06479421]
[1646887397830,0.95796,2612.2,2611.2,0.06479421]
[1646887398229,0.05300754,2612.1,2611.3,1.6704889]
[1646887398474,0.95796,2612.2,2611.5,0.3759]
[1646887398673,0.95796,2612.2,2611.6,1.03668114]
[1646887398674,2.15855425,2612.2,2611.6,1.03668114]
[1646887398872,2.2056854,2612.2,2611.4,0.06945166]
[1646887399072,2.2056854,2612.2,2611.2,3.5769945]
[1646887399271,1.00509115,2612.2,2611.3,1.67128867]
[1646887399473,0.95796,2612.2,2611.4,3.5]
[1646887399671,0.95796,2612.2,2611.4,0.95786]
[1646887399672,0.05602698,2612.1,2611.4,0.95786]
[1646887399872,0.05602698,2612.1,2611.5,3.5]
[1646887400272,0.95796,2612.2,2611.7,0.88388334]
[1646887400476,3.1846374,2612.4,2611.5,3.8759]
[1646887400477,3.1846374,2612.4,2611.8,0.06444695]
[1646887400675,3.1846374,2612.4,2611.5,6.3162]
[1646887400676,0.05373264,2612.3,2611.5,6.3162]
[1646887400876,0.05373264,2612.3,2610.9,1.1253]
[1646887400877,3.99873264,2612.3,2610.9,1.1253]
[1646887401083,0.3759,2611.5,2610.8,0.00073965]
[1646887401281,0.01226752,2611.9,2610.8,0.00073965]
[1646887401282,0.3759,2611.3,2610.8,0.00073965]
[1646887401482,0.3759,2611.1,2610.2,0.3092]
[1646887401681,0.3759,2610.9,2610.2,0.3092]
[1646887401880,15.3434967,2610.8,2609.4,1.1934]
[1646887402080,0.3759,2610.4,2609.5,1.59002833]
[1646887402322,0.04768566,2610.1,2609.5,1.59002833]
[1646887402525,1.08433262,2610.1,2609.4,1.08344682]
[1646887402725,0.3759,2610.0,2609.4,1.08344682]
[1646887402923,0.05402182,2609.9,2609.5,1.59010495]
[1646887403321,0.44191484,2610.6,2609.7,3.0]
[1646887403522,0.959,2610.0,2609.5,3.5]
[1646887403725,0.959,2610.0,2609.6,1.59013958]
[1646887403922,0.959,2610.0,2609.8,1.18405609]
[1646887404825,0.909,2610.0,2609.8,1.18405609]
[1646887405028,0.909,2610.0,2609.5,3.50121094]
[1646887405425,0.95819451,2610.0,2609.5,3.50121094]
[1646887405631,0.95819451,2610.0,2609.6,1.59002905]
[1646887405825,0.95819451,2610.0,2609.5,3.50121094]
[1646887406099,0.909,2610.0,2609.6,1.59000529]
[1646887406299,0.909,2610.0,2609.7,3.58393316]
[1646887406498,0.909,2610.0,2609.8,1.59000529]
[1646887406698,0.909,2610.0,2609.7,0.08393316]
[1646887406901,0.909,2610.0,2609.8,0.94052291]
[1646887407902,0.909,2610.0,2609.5,0.00121094]
[1646887408103,0.95347869,2610.0,2609.5,1.5913441]
[1646887408305,0.04498105,2609.9,2609.5,1.5913441]
[1646887408504,0.05418477,2609.8,2609.5,1.5913441]
[1646887408704,0.95888,2609.7,2609.5,0.00121094]
[1646887409105,0.95888,2609.7,2608.4,1.0]
[1646887409106,2.59381,2609.7,2608.4,1.0]
[1646887409308,0.02927858,2609.5,2608.5,1.59053332]
[1646887409506,0.02927858,2609.5,2608.4,1.0]
[1646887409507,0.3759,2609.2,2608.4,1.0]
[1646887409730,0.3759,2608.9,2608.4,0.3537]
[1646887409920,0.04271731,2608.8,2608.3,0.79477195]
[1646887410122,0.04271731,2608.8,2608.4,4.6940294]
[1646887410123,0.95933,2608.8,2608.4,4.6940294]
[1646887410324,4.01944119,2609.1,2608.5,0.06964288]
[1646887410325,1.0,2609.1,2608.5,0.06964288]
[1646887410723,0.3,2609.1,2608.5,0.06964288]
[1646887411125,1.2591477,2609.2,2609.1,0.91558216]
[1646887411326,2.2182277,2609.2,2609.1,0.91558216]
[1646887411528,2.87768,2609.5,2609.1,4.41558216]
[1646887411828,2.87768,2609.5,2609.1,0.91558216]
[1646887412227,2.87768,2609.5,2608.6,3.5]
[1646887412428,0.95886,2609.4,2608.7,0.07001079]
[1646887412627,0.3759,2609.3,2608.7,0.07001079]
[1646887412829,0.0012,2608.9,2608.7,0.07001079]
[1646887413026,0.0012,2608.9,2608.5,2.9022]
[1646887413229,0.0012,2608.9,2608.3,0.00387099]
[1646887413230,0.6771,2608.9,2608.3,0.00387099]
[1646887413487,1.38953925,2608.5,2608.2,0.09427404]
[1646887413675,1.68953925,2608.5,2608.2,0.09427404]
[1646887414078,3.7,2608.4,2608.0,0.00838595]
[1646887414380,0.04504119,2608.1,2607.8,0.07962568]
[1646887414580,0.445,2608.0,2607.8,1.14793164]
[1646887414780,0.05266636,2607.9,2607.8,1.05956206]
[1646887414979,0.01262365,2608.5,2607.8,3.96377076]
[1646887414980,0.445,2608.2,2607.8,3.96377076]
[1646887415179,3.83945,2608.9,2607.9,3.5]
[1646887415180,1.91877,2608.4,2607.9,3.5]
[1646887415381,0.0012,2608.9,2608.0,0.09024631]
[1646887415579,15.34786156,2609.7,2608.0,0.09024631]
[1646887415580,1.2196,2610.3,2608.2,3.98348136]
[1646887415784,3.5,2610.0,2608.3,3.5778313]
[1646887416089,0.4915371,2610.2,2608.5,0.09034207]
[1646887416281,3.70790675,2610.3,2608.6,0.07787491]
[1646887416282,1.9178,2609.8,2608.6,0.07787491]
[1646887416486,0.9589,2609.5,2608.6,0.07787491]
[1646887416681,0.9589,2609.5,2608.4,0.08886469]
[1646887416883,0.9589,2609.5,2609.1,0.08756364]
[1646887417085,0.9589,2609.5,2609.2,0.07807084]
[1646887417321,0.9589,2609.5,2608.4,0.08749441]
[1646887417724,0.9589,2609.5,2608.5,0.153344]
[1646887417921,0.9589,2609.5,2608.4,0.08749441]
[1646887418124,0.95905,2609.2,2608.5,1.12510109]
[1646887418324,0.95905,2609.2,2608.6,3.5]
[1646887418524,0.95905,2609.2,2608.7,0.08331566]
[1646887419929,0.95905,2609.2,2608.4,0.07849379]
[1646887419930,1.25905,2609.2,2608.4,0.07849379]
[1646887420127,1.70405,2609.2,2608.4,0.07849379]
[1646887420330,2.84520379,2609.2,2608.4,0.07849379]
[1646887420728,3.84520379,2609.2,2608.4,1.06802068]
[1646887420972,1.9187232,2609.0,2608.5,0.08285392]
[1646887421178,2.3637232,2609.0,2608.5,0.08285392]
[1646887421386,0.9593,2608.9,2608.2,6.406367]
[1646887421579,0.9593,2608.9,2608.2,0.011667]
[1646887421580,1.91875,2608.7,2608.2,0.011667]
[1646887421781,1.91875,2608.7,2608.1,0.06987165]
[1646887421983,0.9593,2608.9,2608.1,0.06987165]
[1646887422383,0.95901,2609.2,2608.1,0.06987165]
[1646887422581,0.95901,2609.2,2608.2,6.2322]
[1646887422783,2.11382957,2609.2,2608.3,1.14189039]
[1646887422981,2.11382957,2609.2,2608.4,0.08046148]
[1646887423681,0.95901,2609.2,2608.4,0.08046148]
[1646887423885,3.9,2609.1,2607.2,0.04843042]
[1646887424085,0.01204073,2607.8,2605.7,0.67111202]
[1646887424284,0.01204073,2607.8,2605.0,2.7754651]
[1646887424285,7.19998061,2604.9,2604.8,0.030842]
[1646887424492,0.20045611,2606.0,2604.1,1.69828087]
[1646887424493,0.05421249,2604.8,2604.1,0.15158726]
[1646887424737,0.04794104,2604.4,2604.0,0.01698112]
[1646887424928,3.49520222,2604.5,2604.3,0.086161]
[1646887425122,3.43363677,2604.0,2603.8,0.0151301]
[1646887425325,0.445,2604.4,2603.8,0.0151301]
[1646887425326,0.04906029,2604.4,2604.3,0.2639558]
[1646887425725,5.563,2604.9,2604.3,0.2639558]
[1646887425924,0.05140336,2604.4,2604.3,1.26395694]
[1646887426128,0.49596956,2604.7,2604.3,1.26395694]
[1646887426329,0.04559524,2605.2,2604.3,0.2639558]
[1646887426535,0.171667,2605.5,2604.3,0.2639558]
[1646887426536,1.243,2605.4,2604.3,0.2639558]
[1646887426831,0.0507689,2605.3,2604.3,0.2639558]
[1646887427030,0.4957689,2605.3,2604.3,0.2639558]
[1646887427231,0.445,2605.3,2604.3,0.2639558]
[1646887427431,1.92124,2605.2,2604.3,0.2639558]
[1646887427630,0.49716201,2605.1,2604.3,0.2639558]
[1646887427830,0.04133056,2605.0,2604.3,0.2639558]
[1646887428030,0.445,2605.0,2604.3,0.2639558]
[1646887428232,0.445,2605.0,2604.3,0.61393182]
[1646887428476,0.04900133,2604.9,2604.3,0.61393182]
[1646887428680,1.9212,2605.2,2604.3,0.61393182]
[1646887428879,0.798,2605.4,2604.3,0.61393182]
[1646887428880,0.798,2605.4,2604.4,3.9]
[1646887429083,0.798,2605.4,2604.4,4.09930152]
[1646887429281,0.798,2605.4,2604.4,4.46985202]
[1646887429483,0.16,2605.6,2605.3,1.12858898]
[1646887429680,0.445,2605.5,2605.3,1.12858898]
[1646887430081,0.18194379,2606.3,2605.5,2.9]
[1646887430285,2.88102,2606.4,2605.7,0.87229362]
[1646887430582,1.0483408,2606.5,2605.8,3.5]
[1646887430583,0.6033408,2606.5,2605.8,3.5]
[1646887430781,0.95987,2607.0,2605.9,3.5]
[1646887430980,0.95987,2607.0,2606.8,0.91511958]
[1646887431182,0.95987,2607.0,2606.8,1.19674414]
[1646887431381,0.445,2606.9,2606.6,0.04471548]
[1646887431590,0.01276907,2606.7,2606.6,0.15528312]
[1646887431881,2.37805907,2606.7,2606.6,0.15528312]
[1646887432080,0.45776907,2606.7,2606.6,0.15528312]
[1646887432320,0.95987,2607.0,2606.6,1.03606245]
[1646887432524,0.95987,2607.0,2606.2,0.020077]
[1646887432525,0.445,2606.9,2606.2,0.020077]
[1646887432724,0.63988047,2606.9,2606.2,0.0297006]
[1646887432929,0.01284912,2606.3,2606.2,0.0297006]
[1646887433124,1.41814912,2606.3,2606.2,0.1030931]
[1646887433324,0.445,2606.3,2606.2,0.1030931]
[1646887433524,2.8,2606.7,2605.5,0.01459338]
[1646887433731,0.01264914,2606.3,2606.2,1.09448678]
[1646887433926,0.01264914,2606.3,2605.5,0.05308778]
[1646887434132,0.97287634,2606.3,2605.5,0.05308778]
[1646887434329,0.3,2606.2,2605.5,0.05308778]
[1646887434927,0.3,2606.2,2606.1,1.02078819]
[1646887435330,4.2,2606.2,2605.2,0.03164384]
[1646887435630,4.2,2606.2,2604.8,0.04151136]
[1646887435631,0.01219647,2605.3,2604.8,0.04151136]
[1646887436075,1.92156,2605.6,2604.8,0.04151136]
[1646887436076,3.22156,2605.6,2604.8,0.04151136]
[1646887436274,0.4573941,2605.5,2604.8,0.04151136]
[1646887436474,0.4573941,2605.5,2604.2,0.0345768]
[1646887436475,0.9609695,2605.3,2604.2,0.03352004]
[1646887436681,2.88288,2605.0,2604.2,0.03352004]
[1646887436877,1.9219113,2604.8,2604.2,0.03352004]
[1646887437075,1.9219113,2604.8,2603.8,0.09425446]
[1646887437076,3.945,2604.7,2603.8,0.09425446]
[1646887437283,0.3,2604.7,2603.8,0.09425446]
[1646887437476,1.3,2604.7,2603.8,0.09425446]
[1646887437678,1.3,2604.7,2604.3,0.9486453]
[1646887437876,2.9216727,2604.9,2604.7,0.87756991]
[1646887438078,0.96068,2604.8,2604.7,0.87756991]
[1646887438281,0.96068,2604.8,2603.9,0.02310036]
[1646887438680,0.04558146,2604.7,2603.9,0.02310036]
[1646887438879,1.92193,2604.5,2603.9,0.02310036]
[1646887439084,1.92193,2604.5,2603.8,0.0440939]
[1646887439085,0.9609575,2604.3,2603.8,0.0440939]
[1646887439285,0.9609575,2604.3,2603.9,0.93562561]
[1646887439736,0.3578256,2604.2,2603.6,0.12037516]
[1646887439932,1.01849917,2603.9,2603.6,0.12037516]
[1646887440139,0.9611,2603.9,2603.6,0.12037516]
[1646887440539,1.96908755,2603.9,2603.7,1.04419972]
[1646887440737,0.0546242,2603.7,2603.6,1.04339945]
[1646887441144,0.9611,2603.9,2603.6,1.04339945]
[1646887441344,2.88306,2604.6,2603.7,3.9]
[1646887441543,2.88296,2604.7,2603.7,3.9]
[1646887441950,2.96870166,2604.7,2603.7,3.9]
[1646887442145,0.96071,2604.7,2603.9,3.9]
[1646887442341,0.04345585,2605.5,2604.1,3.0]
[1646887442542,0.18194379,2605.8,2603.9,0.00096]
[1646887442543,1.92108,2605.2,2603.9,0.00096]
[1646887442740,1.92108,2605.2,2604.1,0.00096]
[1646887442942,1.92108,2605.2,2603.8,0.040106]
[1646887443142,1.92163,2605.0,2603.8,0.041066]
[1646887443341,1.19101599,2605.1,2603.6,0.00096]
[1646887443342,0.96107,2604.5,2603.6,0.00096]
[1646887443583,0.96107,2604.5,2603.5,0.0381467]
[1646887443584,0.05272217,2604.3,2603.5,0.0381467]
[1646887443782,0.445,2604.2,2603.0,95.77796579]
[1646887443983,0.01293864,2603.1,2603.0,89.37995123]
[1646887444178,0.01293864,2603.1,2603.0,57.44821201]
[1646887444384,0.01293864,2603.1,2602.0,0.05791332]
[1646887444385,0.01293864,2603.1,2600.1,0.07383262]
[1646887444386,0.18194379,2602.7,2600.1,0.07383262]
[1646887444591,0.7971192,2600.6,2599.6,0.0301056]
[1646887444780,0.7971192,2600.6,2598.7,0.20602763]
[1646887444781,8.563,2599.7,2598.7,0.05740352]
[1646887444987,8.563,2599.7,2598.0,0.43462388]
[1646887444988,37.67837651,2599.6,2599.4,0.03844944]
[1646887445185,37.67837651,2599.6,2597.2,25.64499081]
[1646887445186,1.9269482,2598.5,2596.9,0.57449544]
[1646887445387,3.0,2597.6,2597.3,0.21973578]
[1646887445592,3.0,2597.6,2597.3,0.0255659]
[1646887445593,5.58917435,2597.4,2597.3,0.0255659]
[1646887445794,5.58917435,2597.4,2596.1,0.0441937]
[1646887445795,64.88683502,2597.4,2596.1,0.0441937]
[1646887445992,64.88683502,2597.4,2595.5,0.0581872]
[1646887445993,0.023301,2595.7,2595.5,0.0581872]
[1646887446191,0.023301,2595.7,2594.0,0.07465652]
[1646887446192,117.15095297,2595.6,2594.0,0.07465652]
[1646887446389,5.563,2594.1,2594.0,0.07465652]
[1646887446588,5.563,2594.1,2593.8,0.04588438]
[1646887446589,17.523,2594.1,2593.8,0.04588438]
[1646887446787,17.523,2594.1,2592.4,0.48039634]
[1646887446788,5.563,2593.9,2592.4,0.48039634]
[1646887446993,5.563,2593.9,2592.4,0.07478668]
[1646887446994,5.513,2592.5,2592.4,0.07478668]
[1646887447238,5.513,2592.5,2592.0,0.0599233]
[1646887447239,0.30360231,2592.5,2592.0,0.0599233]
[1646887447441,20.21385531,2592.5,2592.0,0.0599233]
[1646887447635,20.21385531,2592.5,2591.8,0.06705388]
[1646887447636,0.23257694,2592.4,2591.8,0.06705388]
[1646887447840,11.93,2592.9,2592.5,1.14912467]
[1646887448142,11.93,2592.9,2591.5,0.65574882]
[1646887448143,11.16675436,2592.9,2591.5,0.65574882]
[1646887448337,55.76105516,2592.8,2592.7,0.5]
[1646887448540,0.01247857,2593.9,2592.7,0.5]
[1646887448750,61.25156266,2594.9,2592.7,0.5]
[1646887448939,23.79683671,2594.9,2592.7,0.0001]
[1646887449135,23.79683671,2594.9,2593.2,0.01214369]
[1646887449136,1.00653207,2594.1,2593.2,0.01214369]
[1646887449337,1.00653207,2594.1,2593.2,0.09508686]
[1646887449338,11.47,2594.0,2593.2,0.09508686]
[1646887449540,23.35183671,2594.9,2593.2,0.14823458]
[1646887449743,0.51249948,2595.7,2593.7,0.3]
[1646887449744,58.77375572,2593.9,2593.7,0.3]
[1646887449944,1.67073627,2597.2,2594.3,0.01234622]
[1646887450139,0.01294529,2596.7,2596.6,0.8871574]
[1646887450338,1.67073627,2597.2,2596.6,0.0624588]
[1646887450540,1.67073627,2597.2,2596.6,1.62451867]
[1646887450541,75.313264,2596.7,2596.6,1.62451867]
[1646887450739,3.40534855,2597.3,2596.6,3.88345909]
[1646887450740,85.11292879,2597.1,2596.6,3.88345909]
[1646887450978,3.40534855,2597.3,2596.7,3.5]
[1646887451177,3.43736215,2597.0,2596.8,0.445]
[1646887451378,1.8013518,2600.0,2596.8,0.445]
[1646887451379,3.0,2598.9,2596.8,0.445]
[1646887451575,0.13819997,2597.9,2596.9,0.00096]
[1646887451782,0.13819997,2597.9,2596.6,0.09270474]
[1646887451783,0.13819997,2597.9,2596.6,0.04368272]
[1646887451979,0.13819997,2597.9,2596.0,0.03137044]
[1646887451980,3.0,2596.9,2596.0,0.03137044]
[1646887452177,0.13819997,2597.9,2592.9,5.563]
[1646887452178,0.01249611,2597.7,2595.5,0.00578452]
[1646887452380,0.01249611,2597.7,2594.6,0.05097876]
[1646887452381,3.0,2595.8,2594.6,0.05097876]
[1646887452576,3.0,2595.2,2592.8,0.01867712]
[1646887452778,3.945,2595.1,2594.6,0.01294768]
[1646887452979,0.01239408,2594.7,2594.2,0.3759]
[1646887453277,0.13819997,2596.5,2593.4,3.0]
[1646887453278,1.0,2594.6,2593.4,3.0]
[1646887453476,1.0,2594.6,2593.9,3.0]
[1646887453677,1.82397887,2595.4,2593.8,3.0]
[1646887453879,1.82397887,2595.4,2594.5,1.13456092]
[1646887454088,1.82397887,2596.4,2595.0,3.0]
[1646887454279,0.13819997,2596.5,2595.4,3.0]
[1646887454478,4.0,2598.6,2595.4,3.0]
[1646887454479,0.76269305,2596.3,2595.7,7.49797104]
[1646887454762,64.136648,2596.4,2596.1,3.0]
[1646887454965,98.249859,2596.2,2595.6,3.945]
[1646887455162,1.75169448,2596.2,2594.9,0.445]
[1646887455362,0.15020688,2596.9,2594.5,0.445]
[1646887455363,0.01288726,2596.6,2594.5,0.445]
[1646887455566,0.01288726,2596.6,2594.6,3.50096]
[1646887455759,0.01288726,2596.6,2596.1,1.03493217]
[1646887455965,0.136086,2597.3,2596.2,3.5]
[1646887456161,0.136086,2597.3,2595.9,3.0]
[1646887456362,0.136086,2597.3,2596.0,0.00096]
[1646887456563,0.136086,2597.3,2595.2,0.00096]
[1646887456564,0.5954,2597.2,2595.2,0.00096]
[1646887456763,3.5,2597.1,2595.3,0.00096]
[1646887456963,0.996887,2596.4,2595.3,3.0]
[1646887457164,6.30216559,2597.1,2595.3,3.0]
[1646887457165,6.15656559,2597.1,2595.3,3.0]
[1646887457361,0.283286,2597.3,2595.3,3.3759]
[1646887457362,1.0,2596.7,2595.3,3.3759]
[1646887457565,1.0,2596.7,2595.4,0.00096]
[1646887457776,1.0,2596.7,2594.8,0.02186]
[1646887457777,4.0,2596.6,2594.8,0.02186]
[1646887457963,4.0,2596.6,2592.7,0.035166]
[1646887457964,4.0,2596.6,2595.0,3.0]
[1646887458163,4.0,2596.6,2595.1,0.3759]
[1646887458365,4.0,2596.6,2595.4,1.17703904]
[1646887458572,4.0,2596.6,2595.8,1.21348411]
[1646887458771,0.9968,2597.0,2596.2,0.88816978]
[1646887458982,0.9968,2597.0,2596.9,1.06910162]
[1646887459576,2.6208,2597.0,2596.9,1.06910162]
[1646887459977,2.6208,2597.0,2596.9,4.06910162]
[1646887460376,2.6208,2597.0,2595.8,0.01245226]
[1646887460579,0.136086,2597.3,2595.4,3.0]
[1646887460580,0.136086,2597.3,2595.6,3.0]
[1646887460777,0.136086,2597.3,2595.5,3.5]
[1646887460778,0.136086,2597.3,2596.2,3.0]
[1646887460978,0.136086,2597.3,2597.1,3.0]
[1646887461180,1.124,2598.1,2596.4,7.49797104]
[1646887461181,1.124,2598.1,2597.2,6.5]
[1646887461385,0.01342353,2598.6,2598.0,10.49797104]
[1646887461579,0.005834,2600.0,2599.4,1.03878168]
[1646887461780,2.15884391,2600.9,2598.3,3.0]
[1646887461781,1.0,2600.5,2598.3,3.0]
[1646887461980,1.0,2600.5,2598.1,0.01295617]
[1646887461981,0.5,2598.7,2598.6,0.00096]
[1646887462226,0.5,2598.7,2598.1,0.00096]
[1646887462426,0.5,2598.7,2597.7,3.5]
[1646887462626,2.72393567,2599.1,2597.8,0.00096]
[1646887462832,2.72393567,2599.1,2598.4,1.15383136]
[1646887463031,2.72393567,2599.8,2599.4,0.89744291]
[1646887463233,1.77649276,2599.1,2598.6,1.03540653]
[1646887463430,0.04263176,2599.9,2599.1,4.0]
[1646887463628,1.002634,2600.7,2599.2,6.5]
[1646887463629,0.04206334,2599.8,2599.2,6.5]
[1646887463831,1.49881831,2599.8,2598.8,0.00096]
[1646887464037,0.04206334,2599.8,2598.8,0.00096]
[1646887464232,0.04206334,2599.8,2597.8,3.0]
[1646887464233,1.63075497,2599.7,2597.8,3.0]
[1646887464431,0.01206861,2599.6,2598.0,0.3759]
[1646887464632,0.22400713,2599.8,2599.7,1.05356045]
[1646887464833,0.50575497,2599.5,2598.7,3.0]
[1646887465032,0.22400713,2599.8,2598.7,3.0]
[1646887465033,0.54781831,2599.8,2598.7,3.0]
[1646887465235,0.18777779,2600.7,2599.2,3.0]
[1646887465438,0.50575497,2599.7,2598.4,0.01259174]
[1646887465632,0.50575497,2599.7,2599.3,0.00096]
[1646887465832,0.01258676,2600.4,2598.8,0.04708424]
[1646887466082,0.35402848,2599.6,2599.4,0.0436737]
[1646887466281,0.35402848,2600.3,2598.4,0.04935793]
[1646887466780,0.35402848,2599.5,2598.2,0.95580135]
[1646887466978,0.01239208,2599.9,2598.6,1.0544944]
[1646887467180,0.53597227,2599.4,2598.6,1.0544944]
[1646887467380,0.18194379,2599.4,2599.0,1.13519356]
[1646887467581,0.96277,2601.1,2599.0,1.13519356]
[1646887467582,0.05518546,2599.1,2599.0,1.13519356]
[1646887467786,0.9968,2599.5,2599.1,0.15574989]
[1646887468091,0.9968,2599.5,2599.1,0.11037092]
[1646887468281,0.9968,2599.5,2598.2,0.37686]
[1646887468480,0.9968,2599.5,2598.0,0.01600702]
[1646887468481,0.18194379,2599.4,2598.0,0.01600702]
[1646887468680,4.18194379,2599.4,2598.0,0.01600702]
[1646887469086,4.18194379,2599.4,2598.4,0.91268895]
[1646887469478,4.0,2599.4,2598.4,0.91268895]
[1646887469723,1.22717823,2599.7,2598.1,0.3759]
[1646887469724,0.9968,2599.7,2598.1,0.3759]
[1646887469925,0.9968,2599.7,2598.2,0.00096]
[1646887470124,1.17874379,2599.7,2598.0,0.01600702]
[1646887470326,0.04758656,2599.6,2598.0,0.01600702]
[1646887470527,0.19478656,2599.6,2598.0,0.01600702]
[1646887470728,200.0,2599.0,2598.0,0.01600702]
[1646887472128,200.0,2599.0,2598.6,1.22787304]
[1646887472338,200.0,2599.0,2598.2,0.91464849]
[1646887472339,200.0,2599.0,2598.3,3.5]
[1646887472731,200.0,2599.0,2597.4,0.00096]
[1646887472935,200.0,2599.0,2597.6,0.00096]
[1646887473144,3.0,2598.8,2597.1,0.00096]
[1646887473339,3.0,2598.6,2596.9,0.5]
[1646887473583,0.06124711,2598.7,2596.9,0.5]
[1646887473584,0.4015909,2598.7,2597.1,0.00096]
[1646887473780,0.33794379,2598.5,2597.1,0.00096]
[1646887473981,0.04728484,2598.4,2597.1,0.00096]
[1646887474180,0.38042863,2598.4,2597.1,0.00096]
[1646887474379,1.19415205,2598.3,2597.1,1.1163167]
[1646887474579,1.33975205,2598.3,2597.1,1.1153567]
[1646887474780,1.33975205,2598.3,2597.9,1.08617448]
[1646887474781,0.18194379,2598.2,2597.9,1.08617448]
[1646887474984,0.18194379,2598.2,2598.0,3.5]
[1646887475187,0.1464,2598.9,2597.9,1.08617448]
[1646887475188,0.0495,2598.9,2597.9,1.03617448]
[1646887475388,0.0495,2598.9,2597.4,3.8759]
[1646887475587,0.0495,2598.9,2597.5,0.00096]
[1646887475788,0.0495,2598.9,2597.2,0.011667]
[1646887475789,0.23514754,2598.9,2597.2,0.012627]
[1646887475991,1.125,2598.8,2597.2,0.011667]
[1646887476187,0.05714861,2598.7,2596.5,0.00096]
[1646887476487,2.21649351,2598.7,2597.0,1.00422817]
[1646887476686,2.21649351,2598.7,2597.1,0.00096]
[1646887476687,1.874,2598.5,2597.1,0.00096]
[1646887477088,2.05594379,2598.5,2597.1,3.50096]
[1646887477325,0.0511076,2598.4,2597.2,0.00096]
[1646887477530,0.04418756,2598.4,2596.3,3.011667]
[1646887477728,0.04418756,2598.4,2596.3,0.011667]
[1646887477729,0.01268229,2598.1,2596.3,0.011667]
[1646887478129,0.18194379,2598.0,2596.3,0.011667]
[1646887478326,1.45791,2598.3,2596.7,0.3759]
[1646887478531,2.0,2598.4,2597.3,1.34592442]
[1646887478728,1.0,2598.3,2597.3,1.34592442]
[1646887479432,1.0,2598.3,2596.7,3.5]
[1646887479433,1.0,2598.3,2597.5,0.3759]
[1646887479832,1.0,2598.3,2597.1,3.5]
[1646887479833,0.09999999,2598.3,2597.1,3.5]
[1646887480035,0.09999999,2598.3,2596.9,3.5]
[1646887480232,0.09999999,2598.7,2597.2,3.0]
[1646887480432,0.09999999,2598.3,2596.9,0.445]
[1646887480635,200.06102258,2599.0,2597.0,0.3759]
[1646887480636,0.09999999,2598.6,2597.0,0.3759]
[1646887480838,0.28194378,2598.6,2597.0,0.3759]
[1646887481076,0.96325,2598.8,2596.3,3.511667]
[1646887481077,0.18194379,2598.5,2596.3,3.511667]
[1646887481276,1.40694378,2598.5,2596.4,3.0]
[1646887481574,1.01653676,2598.8,2596.3,3.511667]
[1646887481575,4.46325,2598.7,2596.5,0.00096]
[1646887481774,0.09999999,2598.4,2596.5,0.00096]
[1646887482174,0.09999999,2598.6,2596.5,0.00096]
[1646887482376,3.68194379,2598.7,2596.6,3.0]
[1646887482574,0.09716745,2598.5,2598.0,1.09560145]
[1646887482777,0.09716745,2598.5,2598.1,3.8759]
[1646887482977,200.0,2599.0,2598.3,0.3759]
[1646887483176,200.0,2599.0,2598.9,0.3759]
[1646887483583,200.06801722,2599.0,2598.9,0.0687727]
[1646887483775,200.06801722,2599.0,2598.9,0.4446727]
[1646887484376,200.06801722,2599.0,2598.9,0.0687727]
[1646887484576,200.06801722,2599.0,2598.5,0.10217698]
[1646887484831,200.06801722,2599.0,2598.6,0.3759]
[1646887484832,200.0,2599.0,2598.6,0.3759]
[1646887485030,200.0,2599.0,2597.8,0.011667]
[1646887485235,200.0,2599.0,2597.8,0.012627]
[1646887485437,200.0,2599.0,2597.8,0.011667]
[1646887485936,200.0,2599.0,2598.5,0.45344881]
[1646887486140,200.0,2599.0,2598.5,0.3759]
[1646887486141,0.0012,2598.6,2598.5,0.3759]
[1646887486935,0.0012,2598.6,2597.8,0.388527]
[1646887487235,199.996847,2599.0,2598.3,0.3759]
[1646887487439,198.753547,2599.0,2598.8,0.3759]
[1646887487637,189.563147,2599.0,2598.9,3.3759]
[1646887487838,120.75623507,2599.0,2598.9,3.3759]
[1646887488038,57.90081034,2599.0,2598.9,3.8209]
[1646887488239,49.66042888,2599.0,2598.9,3.8209]
[1646887488491,2.31753113,2600.9,2598.9,3.8209]
[1646887488492,0.171,2600.9,2599.1,0.3759]
[1646887488694,0.171,2600.9,2600.1,0.3759]
[1646887488888,1.7619,2601.3,2599.9,0.3759]
[1646887488889,7.5,2601.2,2599.9,0.3759]
[1646887489095,7.5,2601.2,2599.7,5e-06]
[1646887489096,0.171,2600.9,2599.7,5e-06]
[1646887489292,1.92508,2600.5,2599.0,0.00096]
[1646887489493,1.92508,2600.5,2598.9,1.21148255]
[1646887489692,0.96254,2600.4,2599.0,0.00096]
[1646887489894,1.92508,2600.4,2599.1,0.011716]
[1646887490095,1.92508,2600.4,2599.1,0.012676]
[1646887490498,1.92508,2600.4,2599.4,1.36917819]
[1646887490695,5.0391,2600.3,2599.5,0.08978851]
[1646887491695,5.0391,2600.3,2599.9,0.46515948]
[1646887492096,5.0391,2600.3,2599.9,0.08925948]
[1646887492725,5.0391,2600.3,2600.2,1.20259163]
[1646887492924,0.2205,2600.9,2600.2,1.57849163]
[1646887493131,0.2205,2600.9,2600.6,3.0]
[1646887493331,0.2205,2601.1,2600.9,0.3759]
[1646887493530,1.0,2601.2,2601.0,0.46086506]